[Event "HUN-ch U8-U18 2019"]
[Site "Balatonlelle"]
[Date "2019.06.22"]
[Round "2.24"]
[White "Kobol, Kitti"]
[Black "Karacsonyi, Kata"]
[Result "0-1"]
[ECO "B67"]
[WhiteElo "1318"]
[BlackElo "1798"]
[Annotator "NA"]
[PlyCount "72"]
[EventDate "2019.06.21"]
[EventType "swiss"]
[EventCountry "HUN"]
[SourceTitle "playchess.com"]
[Source "ChessBase"]
[SourceQuality "1"]
[TimeControl "40/5400+30:1800+30"]

1. e4 {[%emt 0:00:06]} c5 {[%emt 0:00:06]} 2. Nf3 {[%emt 0:00:10]} d6 {[%emt 0:00:06]} 3. d4 {[%emt 0:00:09]} cxd4 {[%emt 0:00:06]} 4. Nxd4 {[%emt 0:00:13]} Nf6 {[%emt 0:00:06]} 5. Nc3 {[%emt 0:00:08]} Nc6 {[%emt 0:00:03]} 6. Bg5 {[%emt 0:00:27]} e6 {[%emt 0:00:09]} 7. Qd2 {[%emt 0:00:21]} a6 {[%emt 0:00:07]} 8. O-O-O {[%emt 0:01:49]} Bd7 {[%emt 0:00:05]} 9. f4 {[%emt 0:00:46]} b5 {[%emt 0:00:07]} 10. e5 {[%emt 0:07:28]} dxe5 {[%emt 0:00:20]} 11. Nxc6 {[%emt 0:00:35]} Bxc6 {[%emt 0:00:20]} 12. Qxd8+ {[%emt 0:05:43]} Rxd8 {[%emt 0:00:10]} 13. Rxd8+ {[%emt 0:00:34]} Kxd8 {[%emt 0:00:08]} 14. fxe5 {[%emt 0:00:47]} h6 {[%emt 0:00:06]} 15. Bh4 {[%emt 0:02:17]} g5 {[%emt 0:00:22]} 16. exf6 {[%emt 0:05:11]} gxh4 {[%emt 0:00:08]} 17. Rg1 {[%emt 0:01:28]} Bc5 {[%emt 0:00:26]} 18. Rh1 {[%emt 0:00:56]} Bd4 {[%emt 0:02:40]} 19. h3 {[%emt 0:01:08]} Bxf6 {[%emt 0:00:23]} 20. Ne2 {[%emt 0:02:01]} Rg8 {[%emt 0:01:20]} 21. Rg1 {[%emt 0:02:01]} Bg5+ {[%emt 0:00:49]} 22. Kb1 {[%emt 0:01:07]} Be3 {[%emt 0:00:09]} 23. Rh1 {[%emt 0:00:22]} Bxg2 {[%emt 0:00:15]} 24. Bxg2 {[%emt 0:00:53]} Rxg2 {[%emt 0:00:13]} 25. Rd1+ {[%emt 0:00:06]} Ke7 {[%emt 0:00:17]} 26. Nc3 {[%emt 0:00:39]} Rh2 {[%emt 0:02:28]} 27. Rd3 {[%emt 0:02:19]} Rh1+ {[%emt 0:01:10]} 28. Nd1 {[%emt 0:00:19]} f5 {[%emt 0:01:11]} 29. c3 {[%emt 0:00:41]} f4 {[%emt 0:00:28]} 30. Kc2 {[%emt 0:00:10]} Rh2+ {[%emt 0:00:22]} 31. Kb3 {[%emt 0:00:17]} Rxh3 {[%emt 0:00:46]} 32. Nf2 {[%emt 0:00:52]} Rg3 {[%emt 0:01:28]} 33. Ne4 {[%emt 0:00:40]} h3 {[%emt 0:04:38]} 34. Nxg3 {[%emt 0:01:31]} fxg3 {[%emt 0:00:08]} 35. Rxe3 {[%emt 0:00:16]} h2 {[%emt 0:00:18]} 36. Rxg3 {[%emt 0:00:11]} h1=Q {[%emt 0:00:14]} 0-1

[Event "HUN-ch U8-U18 2019"]
[Site "Balatonlelle"]
[Date "2019.06.21"]
[Round "2.26"]
[White "Zsaki, Akos"]
[Black "Kossela, Peter"]
[Result "1/2-1/2"]
[ECO "C54"]
[WhiteElo "1432"]
[BlackElo "1480"]
[Annotator "NA"]
[PlyCount "68"]
[EventDate "2019.06.21"]
[EventType "swiss"]
[EventCountry "HUN"]
[SourceTitle "playchess.com"]
[Source "ChessBase"]
[SourceQuality "1"]
[TimeControl "40/5400+30:1800+30"]

1. e4 {[%emt 0:00:02]} e5 {[%emt 0:00:08]} 2. Nf3 {[%emt 0:00:08]} Nc6 {[%emt 0:00:08]} 3. Bc4 {[%emt 0:00:09]} Bc5 {[%emt 0:00:20]} 4. c3 {[%emt 0:00:34]} Nf6 {[%emt 0:00:13]} 5. d3 {[%emt 0:00:16]} d6 {[%emt 0:00:12]} 6. Nbd2 {[%emt 0:01:03]} O-O {[%emt 0:03:31]} 7. O-O {[%emt 0:00:21]} a6 {[%emt 0:00:31]} 8. a4 {[%emt 0:01:37]} Ba7 {[%emt 0:06:39]} 9. h3 {[%emt 0:02:07]} h6 {[%emt 0:01:57]} 10. Re1 {[%emt 0:00:26]} Qe7 {[%emt 0:06:01]} 11. Nf1 Be6 {[%emt 0:02:33]} 12. Bb3 {[%emt 0:06:32]} Nd8 {[%emt 0:16:49]} 13. Be3 Bxe3 {[%emt 0:01:53]} 14. Nxe3 {[%emt 0:02:57]} Bxb3 {[%emt 0:00:40]} 15. Qxb3 {[%emt 0:00:13]} Qe6 {[%emt 0:01:04]} 16. c4 {[%emt 0:07:49]} Qc8 {[%emt 0:07:37]} 17. Nd5 {[%emt 0:01:09]} Nxd5 {[%emt 0:00:26]} 18. cxd5 {[%emt 0:00:13]} c5 {[%emt 0:02:23]} 19. Qb6 {[%emt 0:02:11]} Qd7 {[%emt 0:02:59]} 20. a5 {[%emt 0:04:19]} Rc8 {[%emt 0:08:38]} 21. Rec1 {[%emt 0:03:51]} Qc7 {[%emt 0:01:49]} 22. Qxc7 {[%emt 0:03:05]} Rxc7 {[%emt 0:00:59]} 23. b4 {[%emt 0:03:34]} f6 {[%emt 0:02:52]} 24. Rc2 {[%emt 0:00:45]} Nf7 {[%emt 0:00:52]} 25. bxc5 {[%emt 0:00:28]} Rxc5 {[%emt 0:00:39]} 26. Rxc5 {[%emt 0:00:14]} dxc5 {[%emt 0:00:08]} 27. Rb1 {[%emt 0:00:21]} Nd6 {[%emt 0:00:35]} 28. Rb6 {[%emt 0:03:14]} Rd8 {[%emt 0:00:55]} 29. Nd2 {[%emt 0:04:20]} Rd7 {[%emt 0:05:43]} 30. Nc4 {[%emt 0:01:33]} Nb5 {[%emt 0:04:11]} 31. Kf1 {[%emt 0:01:29]} Kf7 {[%emt 0:01:23]} 32. Ke1 {[%emt 0:01:17]} Ke7 {[%emt 0:00:24]} 33. Kd2 {[%emt 0:01:32]} Nd4 {[%emt 0:02:19]} 34. f3 {[%emt 0:04:35]} Nb5 {[%emt 0:04:05]} 1/2-1/2

[Event "HUN-ch U8-U18 2019"]
[Site "Balatonlelle"]
[Date "2019.06.21"]
[Round "2.27"]
[White "Giang, Tran Nam"]
[Black "Havasi, Gergely Bulcsu"]
[Result "1-0"]
[ECO "C42"]
[WhiteElo "2008"]
[BlackElo "1486"]
[Annotator "NA"]
[PlyCount "77"]
[EventDate "2019.06.21"]
[EventType "swiss"]
[EventCountry "HUN"]
[SourceTitle "playchess.com"]
[Source "ChessBase"]
[SourceQuality "1"]
[TimeControl "40/5400+30:1800+30"]

1. e4 {[%emt 0:00:01]} e5 {[%emt 0:00:08]} 2. Nf3 {[%emt 0:00:04]} Nf6 {[%emt 0:00:10]} 3. Nxe5 {[%emt 0:00:27]} Qe7 {[%emt 0:00:11]} 4. d4 {[%emt 0:02:42]} d6 {[%emt 0:00:37]} 5. Nf3 {[%emt 0:01:06]} Nxe4 {[%emt 0:00:26]} 6. Be2 {[%emt 0:00:26]} d5 {[%emt 0:00:44]} 7. O-O {[%emt 0:00:57]} Qf6 {[%emt 0:01:24]} 8. Re1 {[%emt 0:01:57]} Bd6 {[%emt 0:01:52]} 9. Nc3 {[%emt 0:04:53]} c6 {[%emt 0:04:50]} 10. Bd3 {[%emt 0:03:04]} O-O {[%emt 0:02:38]} 11. Nxe4 {[%emt 0:03:35]} dxe4 {[%emt 0:00:20]} 12. Bxe4 {[%emt 0:00:23]} h6 {[%emt 0:00:59]} 13. Qd3 {[%emt 0:05:33]} Na6 {[%emt 0:01:48]} 14. c3 {[%emt 0:03:25]} Be6 {[%emt 0:02:13]} 15. Bd2 {[%emt 0:06:27]} Rac8 {[%emt 0:01:19]} 16. b3 {[%emt 0:06:07]} Rfd8 {[%emt 0:02:37]} 17. Qc2 {[%emt 0:02:44]} Bf4 {[%emt 0:01:55]} 18. Bxf4 {[%emt 0:01:12]} Qxf4 {[%emt 0:01:54]} 19. Qd2 {[%emt 0:03:58]} Qd6 {[%emt 0:03:09]} 20. Rad1 {[%emt 0:01:17]} b5 {[%emt 0:01:54]} 21. Re3 {[%emt 0:04:22]} Nc7 {[%emt 0:01:54]} 22. Ne5 {[%emt 0:03:47]} Nd5 {[%emt 0:01:51]} 23. Rg3 {[%emt 0:00:23]} Bd7 {[%emt 0:01:02]} 24. Nxd7 {[%emt 0:01:26]} Rxd7 {[%emt 0:00:24]} 25. Bf5 {[%emt 0:00:29]} Rcc7 {[%emt 0:01:07]} 26. Bxd7 {[%emt 0:00:48]} Rxd7 27. Re1 {[%emt 0:01:08]} Re7 {[%emt 0:00:25]} 28. Rxe7 {[%emt 0:00:23]} Qxe7 {[%emt 0:00:08]} 29. h3 g5 {[%emt 0:01:05]} 30. c4 {[%emt 0:01:04]} bxc4 {[%emt 0:00:54]} 31. bxc4 {[%emt 0:00:12]} Nb6 {[%emt 0:00:06]} 32. Qc3 {[%emt 0:02:50]} f5 {[%emt 0:03:04]} 33. Re3 {[%emt 0:01:07]} Qf7 {[%emt 0:00:26]} 34. Qe1 {[%emt 0:00:56]} Kf8 {[%emt 0:00:28]} 35. Qb4+ {[%emt 0:00:35]} Kg8 36. Qd6 Qd7 {[%emt 0:03:04]} 37. Qg6+ {[%emt 0:01:27]} Kf8 {[%emt 0:00:15]} 38. Qf6+ {[%emt 0:00:40]} Kg8 {[%emt 0:00:13]} 39. Re7 {[%emt 0:00:15]} 1-0

[Event "HUN-ch U8-U18 2019"]
[Site "Balatonlelle"]
[Date "2019.06.21"]
[Round "2.28"]
[White "Kovacs, Kristof"]
[Black "Panda, Barnabas"]
[Result "0-1"]
[ECO "B30"]
[WhiteElo "1435"]
[BlackElo "1722"]
[Annotator "NA"]
[PlyCount "64"]
[EventDate "2019.06.21"]
[EventType "swiss"]
[EventCountry "HUN"]
[SourceTitle "playchess.com"]
[Source "ChessBase"]
[SourceQuality "1"]
[TimeControl "40/5400+30:1800+30"]

1. e4 {[%emt 0:00:02]} c5 {[%emt 0:00:14]} 2. Nf3 {[%emt 0:00:11]} Nc6 {[%emt 0:00:26]} 3. Bb5 {[%emt 0:00:30]} d6 {[%emt 0:03:30]} 4. d4 {[%emt 0:00:12]} cxd4 {[%emt 0:00:38]} 5. Qxd4 {[%emt 0:01:34]} Bd7 {[%emt 0:01:42]} 6. Bxc6 {[%emt 0:00:19]} Bxc6 {[%emt 0:01:17]} 7. Nc3 {[%emt 0:01:01]} Nf6 {[%emt 0:04:14]} 8. Bg5 {[%emt 0:02:26]} Nd7 {[%emt 0:11:36]} 9. O-O {[%emt 0:01:30]} Qb6 {[%emt 0:01:18]} 10. b4 {[%emt 0:02:51]} Qxd4 {[%emt 0:01:59]} 11. Nxd4 {[%emt 0:00:11]} Nb6 {[%emt 0:00:25]} 12. a4 {[%emt 0:02:13]} h6 {[%emt 0:03:20]} 13. Be3 {[%emt 0:00:43]} Nc4 {[%emt 0:01:28]} 14. Ra2 {[%emt 0:04:38]} Nxe3 {[%emt 0:09:21]} 15. fxe3 {[%emt 0:00:10]} Rc8 {[%emt 0:01:46]} 16. b5 {[%emt 0:01:53]} Bd7 {[%emt 0:00:45]} 17. Nce2 {[%emt 0:01:45]} e5 {[%emt 0:01:09]} 18. Nb3 {[%emt 0:00:33]} Be6 {[%emt 0:00:47]} 19. Rc1 {[%emt 0:00:30]} Be7 {[%emt 0:01:15]} 20. Rb2 {[%emt 0:00:36]} d5 {[%emt 0:03:18]} 21. Ra2 {[%emt 0:01:21]} dxe4 {[%emt 0:01:18]} 22. a5 {[%emt 0:00:39]} Bg4 {[%emt 0:02:38]} 23. Ng3 {[%emt 0:00:31]} Be6 {[%emt 0:00:14]} 24. Ne2 {[%emt 0:00:48]} f5 {[%emt 0:02:31]} 25. Ra4 {[%emt 0:01:24]} Bxb3 {[%emt 0:01:41]} 26. cxb3 {[%emt 0:00:07]} Rxc1+ {[%emt 0:00:13]} 27. Nxc1 {[%emt 0:00:14]} Kd7 {[%emt 0:00:25]} 28. Ne2 {[%emt 0:00:49]} Rc8 {[%emt 0:01:02]} 29. Kf2 {[%emt 0:01:09]} Rc2 {[%emt 0:01:18]} 30. Rc4 {[%emt 0:00:20]} Rb2 {[%emt 0:01:02]} 31. b6 {[%emt 0:00:29]} axb6 {[%emt 0:00:57]} 32. axb6 {[%emt 0:00:12]} Bd6 {[%emt 0:00:50]} 0-1

[Event "HUN-ch U8-U18 2019"]
[Site "Balatonlelle"]
[Date "2019.06.21"]
[Round "2.29"]
[White "Lehocz, Jozsef Jr."]
[Black "Foldes, Marton Gabor"]
[Result "1/2-1/2"]
[ECO "B21"]
[WhiteElo "1382"]
[BlackElo "1653"]
[Annotator "NA"]
[PlyCount "106"]
[EventDate "2019.06.21"]
[EventType "swiss"]
[EventCountry "HUN"]
[SourceTitle "playchess.com"]
[Source "ChessBase"]
[SourceQuality "1"]
[TimeControl "40/5400+30:1800+30"]

1. e4 {[%emt 0:00:02]} c5 {[%emt 0:00:04]} 2. d4 {[%emt 0:00:16]} cxd4 {[%emt 0:00:05]} 3. c3 {[%emt 0:00:06]} Nf6 {[%emt 0:00:09]} 4. e5 {[%emt 0:00:14]} Nd5 {[%emt 0:00:12]} 5. cxd4 {[%emt 0:00:08]} e6 {[%emt 0:00:45]} 6. Nf3 {[%emt 0:00:28]} b6 {[%emt 0:00:54]} 7. Bc4 {[%emt 0:01:48]} Bb7 {[%emt 0:00:47]} 8. Nc3 {[%emt 0:00:25]} Nxc3 {[%emt 0:00:36]} 9. bxc3 {[%emt 0:00:09]} Qc7 {[%emt 0:00:24]} 10. Qd3 {[%emt 0:04:06]} d6 {[%emt 0:04:38]} 11. Bb5+ {[%emt 0:03:28]} Nd7 {[%emt 0:00:41]} 12. Ba3 {[%emt 0:07:53]} Rc8 {[%emt 0:04:32]} 13. Rc1 {[%emt 0:01:22]} Bc6 {[%emt 0:10:50]} 14. c4 {[%emt 0:09:34]} Bxb5 {[%emt 0:11:19]} 15. cxb5 {[%emt 0:00:08]} Qxc1+ {[%emt 0:00:48]} 16. Bxc1 {[%emt 0:00:06]} Rxc1+ {[%emt 0:00:07]} 17. Ke2 {[%emt 0:00:12]} Rxh1 {[%emt 0:00:34]} 18. Qa3 {[%emt 0:00:40]} dxe5 {[%emt 0:02:35]} 19. Qxa7 {[%emt 0:00:14]} Be7 {[%emt 0:09:21]} 20. dxe5 {[%emt 0:02:35]} Rc1 {[%emt 0:07:37]} 21. Nd4 {[%emt 0:01:23]} Rc8 {[%emt 0:01:33]} 22. Nc6 {[%emt 0:00:24]} Bd8 {[%emt 0:12:37]} 23. Qb7 {[%emt 0:02:58]} Rc7 {[%emt 0:00:41]} 24. Qa8 {[%emt 0:00:08]} O-O {[%emt 0:00:57]} 25. Nxd8 {[%emt 0:00:28]} Rc5 {[%emt 0:02:59]} 26. a4 {[%emt 0:00:53]} Rxe5+ {[%emt 0:00:43]} 27. Kf1 {[%emt 0:02:25]} Rd5 {[%emt 0:01:31]} 28. a5 {[%emt 0:02:54]} Rxb5 {[%emt 0:18:49]} 29. a6 {[%emt 0:02:02]} Rd5 {[%emt 0:02:19]} 30. a7 {[%emt 0:00:16]} Nf6 {[%emt 0:00:57]} 31. Qxd5 {[%emt 0:00:27]} Nxd5 {[%emt 0:00:45]} 32. a8=Q {[%emt 0:00:07]} b5 {[%emt 0:01:49]} 33. Qa5 {[%emt 0:00:37]} b4 {[%emt 0:00:14]} 34. Nc6 {[%emt 0:00:18]} Rc8 {[%emt 0:01:05]} 35. Nxb4 {[%emt 0:00:35]} Nf4 {[%emt 0:00:22]} 36. Nc6 {[%emt 0:00:46]} Ng6 {[%emt 0:01:38]} 37. Qa7 {[%emt 0:01:59]} Rf8 {[%emt 0:00:48]} 38. Ne7+ {[%emt 0:00:20]} Nxe7 {[%emt 0:00:19]} 39. Qxe7 {[%emt 0:00:07]} h6 {[%emt 0:00:11]} 40. Ke2 {[%emt 0:00:00]} Ra8 {[%emt 0:00:00]} 41. g4 {[%emt 0:00:33]} g6 {[%emt 0:00:57]} 42. h4 {[%emt 0:00:27]} Kg7 {[%emt 0:00:30]} 43. Kf3 {[%emt 0:00:35]} Rb8 {[%emt 0:01:20]} 44. Qa3 {[%emt 0:00:52]} Rd8 {[%emt 0:00:48]} 45. Qc3+ {[%emt 0:00:27]} Kg8 {[%emt 0:00:23]} 46. Kf4 {[%emt 0:00:08]} Rd5 {[%emt 0:00:17]} 47. Qf6 {[%emt 0:01:09]} h5 {[%emt 0:01:24]} 48. f3 {[%emt 0:03:09]} Kf8 {[%emt 0:02:04]} 49. Ke4 {[%emt 0:00:13]} Kg8 {[%emt 0:01:16]} 50. gxh5 {[%emt 0:00:53]} Rxh5 {[%emt 0:01:04]} 51. Qd8+ {[%emt 0:00:45]} Kg7 {[%emt 0:00:10]} 52. Qd4+ {[%emt 0:00:07]} Kg8 {[%emt 0:00:20]} 53. f4 {[%emt 0:01:03]} Rf5 1/2-1/2

[Event "HUN-ch U8-U18 2019"]
[Site "Balatonlelle"]
[Date "2019.06.22"]
[Round "2.30"]
[White "Pasti, Zsombor"]
[Black "Toth, Barnabas"]
[Result "1/2-1/2"]
[ECO "A56"]
[WhiteElo "1641"]
[BlackElo "1363"]
[Annotator "NA"]
[PlyCount "105"]
[EventDate "2019.06.21"]
[EventType "swiss"]
[EventCountry "HUN"]
[SourceTitle "playchess.com"]
[Source "ChessBase"]
[SourceQuality "1"]
[TimeControl "40/5400+30:1800+30"]

1. d4 {[%emt 0:00:01]} Nf6 {[%emt 0:00:06]} 2. c4 {[%emt 0:00:13]} c5 {[%emt 0:00:09]} 3. e3 {[%emt 0:00:11]} g6 {[%emt 0:00:46]} 4. Nc3 {[%emt 0:00:49]} cxd4 {[%emt 0:00:46]} 5. exd4 {[%emt 0:00:07]} d6 {[%emt 0:00:08]} 6. Nf3 {[%emt 0:00:16]} Bg7 {[%emt 0:00:10]} 7. Be2 {[%emt 0:01:38]} O-O {[%emt 0:01:35]} 8. O-O {[%emt 0:00:58]} Bf5 {[%emt 0:03:57]} 9. Be3 {[%emt 0:03:23]} d5 {[%emt 0:08:48]} 10. Qb3 {[%emt 0:01:17]} Qc7 {[%emt 0:14:34]} 11. cxd5 {[%emt 0:02:35]} Nbd7 {[%emt 0:04:07]} 12. Rac1 {[%emt 0:00:41]} Qb6 {[%emt 0:03:27]} 13. Qa3 {[%emt 0:03:26]} Rfe8 {[%emt 0:01:37]} 14. Nb5 {[%emt 0:01:32]} Nxd5 {[%emt 0:02:28]} 15. Bc4 {[%emt 0:06:14]} N7f6 {[%emt 0:10:56]} 16. Bg5 {[%emt 0:01:32]} a6 {[%emt 0:03:50]} 17. Bxf6 {[%emt 0:00:23]} axb5 {[%emt 0:02:03]} 18. Ne5 {[%emt 0:04:04]} Rxa3 {[%emt 0:01:19]} 19. Bxd5 {[%emt 0:00:28]} Bxf6 {[%emt 0:00:00]} 20. Bxf7+ {[%emt 0:00:28]} Kf8 {[%emt 0:06:30]} 21. Bxe8 {[%emt 0:00:19]} Kxe8 {[%emt 0:00:09]} 22. bxa3 {[%emt 0:00:34]} Bxe5 {[%emt 0:00:54]} 23. dxe5 {[%emt 0:00:11]} Kf7 {[%emt 0:00:28]} 24. Rfe1 {[%emt 0:00:22]} Be6 {[%emt 0:01:23]} 25. Rc3 {[%emt 0:02:04]} Qd4 {[%emt 0:01:56]} 26. Rf3+ {[%emt 0:00:20]} Kg7 {[%emt 0:00:20]} 27. h3 {[%emt 0:01:41]} Qd2 {[%emt 0:00:44]} 28. Rb1 {[%emt 0:00:49]} Qd7 {[%emt 0:01:58]} 29. Rc1 {[%emt 0:02:53]} Bc4 {[%emt 0:01:20]} 30. Rfc3 {[%emt 0:00:21]} Qd5 {[%emt 0:01:05]} 31. a4 {[%emt 0:00:46]} Qxe5 {[%emt 0:00:47]} 32. axb5 {[%emt 0:00:08]} Bxa2 {[%emt 0:01:08]} 33. Re3 {[%emt 0:00:43]} Qd6 {[%emt 0:00:38]} 34. b6 {[%emt 0:00:30]} Be6 {[%emt 0:01:11]} 35. Rce1 {[%emt 0:00:21]} Kf7 {[%emt 0:00:59]} 36. Rxe6 {[%emt 0:02:52]} Qxe6 {[%emt 0:00:06]} 37. Rxe6 {[%emt 0:00:08]} Kxe6 {[%emt 0:00:03]} 38. Kh2 {[%emt 0:00:06]} Kd6 {[%emt 0:00:10]} 39. Kg3 {[%emt 0:00:04]} h6 {[%emt 0:00:39]} 40. Kg4 {[%emt 0:00:00]} Kc6 {[%emt 0:00:00]} 41. h4 {[%emt 0:00:13]} e6 {[%emt 0:03:59]} 42. f4 {[%emt 0:00:29]} Kxb6 {[%emt 0:04:07]} 43. h5 {[%emt 0:00:12]} gxh5+ {[%emt 0:00:06]} 44. Kxh5 {[%emt 0:00:04]} Kc6 {[%emt 0:00:27]} 45. Kxh6 {[%emt 0:00:06]} b5 {[%emt 0:01:13]} 46. g4 {[%emt 0:00:08]} b4 {[%emt 0:00:23]} 47. g5 {[%emt 0:00:03]} b3 {[%emt 0:00:06]} 48. g6 {[%emt 0:00:05]} b2 {[%emt 0:00:06]} 49. g7 {[%emt 0:00:04]} b1=Q {[%emt 0:00:09]} 50. g8=Q {[%emt 0:00:11]} Qh1+ {[%emt 0:00:17]} 51. Kg7 {[%emt 0:00:07]} Qg2+ {[%emt 0:01:10]} 52. Kf8 {[%emt 0:00:07]} Qxg8+ {[%emt 0:00:34]} 53. Kxg8 1/2-1/2

[Event "HUN-ch U8-U18 2019"]
[Site "Balatonlelle"]
[Date "2019.06.21"]
[Round "2.31"]
[White "Csontos, Aron"]
[Black "Vadkerti, Vince"]
[Result "1/2-1/2"]
[ECO "B22"]
[WhiteElo "1376"]
[BlackElo "1558"]
[Annotator "NA"]
[PlyCount "66"]
[EventDate "2019.06.21"]
[EventType "swiss"]
[EventCountry "HUN"]
[SourceTitle "playchess.com"]
[Source "ChessBase"]
[SourceQuality "1"]
[TimeControl "40/5400+30:1800+30"]

1. e4 {[%emt 0:00:03]} c5 {[%emt 0:00:09]} 2. c3 {[%emt 0:00:08]} d5 {[%emt 0:00:15]} 3. exd5 {[%emt 0:00:11]} Qxd5 {[%emt 0:00:45]} 4. d4 {[%emt 0:00:11]} cxd4 {[%emt 0:01:10]} 5. cxd4 {[%emt 0:00:57]} Nf6 {[%emt 0:01:21]} 6. Nc3 {[%emt 0:00:55]} Qd8 {[%emt 0:00:53]} 7. Bc4 {[%emt 0:01:01]} Bf5 {[%emt 0:05:04]} 8. Qb3 {[%emt 0:00:39]} e6 {[%emt 0:01:12]} 9. Qxb7 {[%emt 0:00:31]} Nbd7 {[%emt 0:02:38]} 10. Bf4 {[%emt 0:04:27]} Rc8 {[%emt 0:13:01]} 11. Ba6 {[%emt 0:01:16]} Rxc3 {[%emt 0:02:01]} 12. bxc3 {[%emt 0:00:42]} Be4 {[%emt 0:00:09]} 13. Qxa7 {[%emt 0:01:33]} Bxg2 {[%emt 0:02:53]} 14. Bb7 {[%emt 0:00:11]} Bxh1 {[%emt 0:00:52]} 15. Bxh1 {[%emt 0:00:07]} Nd5 {[%emt 0:03:11]} 16. Bxd5 {[%emt 0:00:20]} exd5 {[%emt 0:00:09]} 17. Nf3 {[%emt 0:00:51]} Be7 {[%emt 0:06:26]} 18. Ne5 {[%emt 0:01:31]} Nxe5 {[%emt 0:02:22]} 19. Bxe5 {[%emt 0:00:09]} O-O {[%emt 0:00:37]} 20. Rb1 {[%emt 0:00:24]} Bd6 {[%emt 0:01:27]} 21. Bxd6 {[%emt 0:00:42]} Qxd6 {[%emt 0:00:09]} 22. h4 {[%emt 0:01:11]} Re8+ {[%emt 0:03:31]} 23. Kd2 {[%emt 0:00:32]} Qf4+ {[%emt 0:00:32]} 24. Kc2 {[%emt 0:01:29]} Qxf2+ {[%emt 0:04:57]} 25. Kb3 {[%emt 0:00:09]} Qh2 {[%emt 0:02:30]} 26. Ka3 {[%emt 0:00:48]} Qd6+ {[%emt 0:05:32]} 27. Rb4 {[%emt 0:00:31]} Rc8 {[%emt 0:04:09]} 28. Kb3 {[%emt 0:00:34]} Qc6 {[%emt 0:01:26]} 29. Qc5 {[%emt 0:00:23]} Qxc5 {[%emt 0:02:21]} 30. dxc5 {[%emt 0:00:05]} f5 {[%emt 0:00:55]} 31. Rd4 {[%emt 0:00:25]} Rxc5 {[%emt 0:01:17]} 32. Kb4 {[%emt 0:00:05]} Rc7 {[%emt 0:03:37]} 33. Rxd5 {[%emt 0:00:07]} f4 {[%emt 0:02:26]} 1/2-1/2

[Event "HUN-ch U8-U18 2019"]
[Site "Balatonlelle"]
[Date "2019.06.21"]
[Round "2.32"]
[White "Matyassy, Lazar"]
[Black "Havasi, Mate Pal"]
[Result "1-0"]
[ECO "C25"]
[WhiteElo "1539"]
[BlackElo "1325"]
[Annotator "NA"]
[PlyCount "79"]
[EventDate "2019.06.21"]
[EventType "swiss"]
[EventCountry "HUN"]
[SourceTitle "playchess.com"]
[Source "ChessBase"]
[SourceQuality "1"]
[TimeControl "40/5400+30:1800+30"]

1. e4 {[%emt 0:00:03]} e5 {[%emt 0:00:07]} 2. Nc3 {[%emt 0:00:24]} Nc6 {[%emt 0:00:27]} 3. Bc4 {[%emt 0:00:26]} Bc5 {[%emt 0:00:16]} 4. Qg4 {[%emt 0:00:09]} Qf6 {[%emt 0:00:30]} 5. Nd5 {[%emt 0:00:19]} Qg6 {[%emt 0:03:55]} 6. Qxg6 {[%emt 0:00:41]} hxg6 {[%emt 0:00:10]} 7. Nxc7+ {[%emt 0:00:10]} Kd8 {[%emt 0:00:15]} 8. Nxa8 {[%emt 0:00:16]} Nd4 {[%emt 0:00:31]} 9. Bb3 {[%emt 0:01:27]} b6 {[%emt 0:00:37]} 10. c3 {[%emt 0:00:50]} Nxb3 {[%emt 0:00:13]} 11. axb3 {[%emt 0:00:07]} a5 {[%emt 0:00:32]} 12. b4 {[%emt 0:00:44]} Bb7 {[%emt 0:01:10]} 13. bxc5 {[%emt 0:01:15]} Bxa8 {[%emt 0:00:32]} 14. cxb6 {[%emt 0:00:12]} Nf6 {[%emt 0:01:02]} 15. f3 {[%emt 0:03:21]} Kc8 {[%emt 0:01:14]} 16. Rxa5 {[%emt 0:00:50]} Kb7 {[%emt 0:00:26]} 17. Rxe5 {[%emt 0:00:17]} Kxb6 {[%emt 0:00:19]} 18. b4 {[%emt 0:01:37]} d6 {[%emt 0:00:21]} 19. Ra5 {[%emt 0:00:33]} Nd7 {[%emt 0:00:38]} 20. d3 {[%emt 0:01:41]} Ne5 {[%emt 0:01:13]} 21. Be3+ {[%emt 0:03:19]} Kb7 {[%emt 0:01:01]} 22. Ke2 {[%emt 0:00:09]} Rc8 {[%emt 0:01:11]} 23. Ra3 {[%emt 0:01:09]} Kc7 {[%emt 0:02:43]} 24. Nh3 {[%emt 0:00:42]} Kd8 {[%emt 0:01:18]} 25. Rha1 {[%emt 0:00:40]} Bb7 {[%emt 0:00:43]} 26. Ng5 {[%emt 0:01:05]} f6 {[%emt 0:00:32]} 27. Ne6+ {[%emt 0:00:05]} Ke7 {[%emt 0:00:37]} 28. Nf4 {[%emt 0:03:32]} g5 {[%emt 0:01:13]} 29. Nd5+ {[%emt 0:01:26]} Bxd5 {[%emt 0:01:08]} 30. exd5 {[%emt 0:00:43]} Kf7 {[%emt 0:01:20]} 31. Ra7+ {[%emt 0:00:39]} Kg6 {[%emt 0:00:13]} 32. Bd4 {[%emt 0:00:14]} Re8 33. Bxe5 Rxe5+ {[%emt 0:01:40]} 34. Kd2 {[%emt 0:00:35]} Rxd5 {[%emt 0:00:17]} 35. Rd7 {[%emt 0:00:09]} Kf5 {[%emt 0:01:49]} 36. g3 {[%emt 0:00:31]} g6 {[%emt 0:00:28]} 37. Re7 {[%emt 0:00:08]} g4 {[%emt 0:00:26]} 38. fxg4+ {[%emt 0:00:43]} Kxg4 {[%emt 0:01:35]} 39. c4 {[%emt 0:01:00]} Rd4 {[%emt 0:00:51]} 40. Ke3 {[%emt 0:00:01]} 1-0